[Event "3rd Matrix Cup 2024"]
[Site "New Delhi"]
[Date "2024.04.08"]
[Round "5.7"]
[White "Sahil Bheron"]
[Black "Ram Prakash, R."]
[Result "0-1"]
[ECO "A37"]
[WhiteElo "1774"]
[BlackElo "2191"]
[Annotator "RC"]
[PlyCount "78"]
[EventDate "2024.04.07"]
[EventType "swiss"]
[EventCountry "IND"]
[SourceTitle "playchess.com"]
[Source "ChessBase"]
[SourceQuality "1"]
[TimeControl "5400+30"]

1. c4 {[%emt 0:02:10]} c5 {[%emt 0:02:28]} 2. g3 {[%emt 0:00:19]} Nc6 {[%emt 0:00:25]} 3. Bg2 {[%emt 0:00:13]} g6 {[%emt 0:00:40]} 4. Nf3 {[%emt 0:00:13]} Bg7 {[%emt 0:00:05]} 5. Nc3 {[%emt 0:00:13]} a6 {[%emt 0:04:35]} 6. O-O {[%emt 0:01:13]} Rb8 {[%emt 0:00:11]} 7. a4 {[%emt 0:03:38]} h5 {[%emt 0:03:40]} 8. e3 {[%emt 0:03:10]} Nh6 {[%emt 0:05:50]} 9. d4 {[%emt 0:01:53]} cxd4 {[%emt 0:00:47]} 10. exd4 {[%emt 0:00:32]} Nf5 {[%emt 0:00:46]} 11. Bf4 {[%emt 0:09:50]} d6 {[%emt 0:00:48]} 12. d5 {[%emt 0:04:53]} Ne5 {[%emt 0:04:34]} 13. c5 {[%emt 0:09:06]} h4 {[%emt 0:03:06]} 14. Re1 {[%emt 0:07:29]} hxg3 {[%emt 0:00:30]} 15. hxg3 {[%emt 0:02:20]} f6 {[%emt 0:06:44]} 16. Ne4 {[%emt 0:10:45]} Kf7 {[%emt 0:02:31]} 17. Rc1 {[%emt 0:02:10]} g5 {[%emt 0:05:11]} 18. Nexg5+ {[%emt 0:11:07]} fxg5 {[%emt 0:00:08]} 19. Nxe5+ {[%emt 0:00:10]} dxe5 {[%emt 0:01:13]} 20. Bxe5 {[%emt 0:00:02]} Bxe5 {[%emt 0:01:07]} 21. Rxe5 {[%emt 0:00:02]} Kf6 {[%emt 0:07:37]} 22. Qe1 {[%emt 0:04:53]} Qg8 {[%emt 0:03:14]} 23. Qc3 {[%emt 0:00:51]} Qh7 {[%emt 0:04:32]} 24. Rce1 {[%emt 0:01:44]} Kg6 {[%emt 0:16:12]} 25. d6 {[%emt 0:02:33]} Qh2+ {[%emt 0:03:28]} 26. Kf1 {[%emt 0:00:03]} exd6 {[%emt 0:03:01]} 27. cxd6 {[%emt 0:02:13]} Rf8 {[%emt 0:00:43]} 28. Be4 {[%emt 0:05:10]} Kh6 {[%emt 0:02:17]} 29. Bxf5 {[%emt 0:05:09]} Bxf5 {[%emt 0:00:28]} 30. Re6+ {[%emt 0:07:53]} Kh5 {[%emt 0:00:40]} 31. Qf3+ {[%emt 0:03:05]} Bg4 {[%emt 0:00:49]} 32. Qxg4+ {[%emt 0:00:39]} Kxg4 {[%emt 0:00:11]} 33. R1e4+ {[%emt 0:00:01]} Rf4 {[%emt 0:00:45]} 34. gxf4 {[%emt 0:00:18]} Qh1+ {[%emt 0:01:05]} 35. Ke2 {[%emt 0:00:07]} Qf3+ {[%emt 0:00:09]} 36. Ke1 {[%emt 0:01:47]} Rc8 {[%emt 0:02:47]} 37. fxg5+ {[%emt 0:00:08]} Kh5 {[%emt 0:00:06]} 38. Kd2 {[%emt 0:00:55]} Qxf2+ {[%emt 0:00:12]} 39. Re2 {[%emt 0:01:03]} Qd4+ {[%emt 0:00:11]} 0-1

[Event "3rd Matrix Cup 2024"]
[Site "New Delhi"]
[Date "2024.04.08"]
[Round "5.8"]
[White "Shubhi Gupta"]
[Black "Akshat Negi"]
[Result "0-1"]
[ECO "D05"]
[WhiteElo "1953"]
[BlackElo "1790"]
[Annotator "RC"]
[PlyCount "72"]
[EventDate "2024.04.07"]
[EventType "swiss"]
[EventCountry "IND"]
[SourceTitle "playchess.com"]
[Source "ChessBase"]
[SourceQuality "1"]
[TimeControl "5400+30"]

1. d4 {[%emt 0:01:44]} d5 {[%emt 0:02:56]} 2. Nf3 {[%emt 0:00:19]} Nf6 {[%emt 0:00:02]} 3. e3 {[%emt 0:00:42]} e6 {[%emt 0:00:59]} 4. Bd3 {[%emt 0:00:42]} Bd6 {[%emt 0:00:08]} 5. b3 {[%emt 0:00:29]} c5 {[%emt 0:06:06]} 6. O-O {[%emt 0:01:44]} Nc6 {[%emt 0:01:15]} 7. Bb2 {[%emt 0:01:25]} cxd4 {[%emt 0:00:22]} 8. exd4 {[%emt 0:00:32]} O-O {[%emt 0:00:15]} 9. Nbd2 {[%emt 0:01:04]} b6 {[%emt 0:04:12]} 10. a3 {[%emt 0:02:28]} Bb7 {[%emt 0:00:50]} 11. Ne5 {[%emt 0:01:55]} Rc8 {[%emt 0:01:33]} 12. f4 {[%emt 0:02:08]} Ne7 {[%emt 0:08:43]} 13. Qe2 {[%emt 0:06:29]} g6 {[%emt 0:01:51]} 14. Ndf3 {[%emt 0:02:18]} Nh5 {[%emt 0:06:32]} 15. Ng5 {[%emt 0:10:26]} Ng7 {[%emt 0:00:09]} 16. Qg4 {[%emt 0:12:18]} h6 {[%emt 0:07:42]} 17. Ngf3 {[%emt 0:02:09]} h5 {[%emt 0:04:26]} 18. Qh3 {[%emt 0:02:09]} Qe8 {[%emt 0:00:56]} 19. Ng5 {[%emt 0:02:26]} f6 {[%emt 0:05:16]} 20. Nxe6 {[%emt 0:00:28]} fxe5 {[%emt 0:03:15]} 21. Nxf8 {[%emt 0:01:30]} e4 {[%emt 0:00:28]} 22. Nd7 {[%emt 0:00:07]} Qd8 {[%emt 0:01:41]} 23. Nf6+ {[%emt 0:03:45]} Kf7 {[%emt 0:00:10]} 24. Nxe4 {[%emt 0:02:47]} dxe4 {[%emt 0:00:08]} 25. Bc4+ {[%emt 0:00:05]} Kf8 {[%emt 0:05:47]} 26. g4 {[%emt 0:02:32]} b5 {[%emt 0:00:08]} 27. f5 {[%emt 0:02:37]} bxc4 {[%emt 0:02:03]} 28. f6 {[%emt 0:00:12]} Nd5 {[%emt 0:00:11]} 29. Bc1 {[%emt 0:04:27]} Ne6 {[%emt 0:08:08]} 30. gxh5 {[%emt 0:33:33]} Ndf4 {[%emt 0:00:18]} 31. Bxf4 {[%emt 0:00:00]} Nxf4 {[%emt 0:00:08]} 32. Qh4 {[%emt 0:00:00]} g5 {[%emt 0:00:02]} 33. Qg4 {[%emt 0:00:00]} Qxf6 {[%emt 0:00:17]} 34. h4 {[%emt 0:00:00]} Qxd4+ {[%emt 0:00:49]} 35. Rf2 {[%emt 0:00:00]} Qxa1+ {[%emt 0:00:07]} 36. Kh2 {[%emt 0:00:00]} Ke8 {[%emt 0:01:11]} 0-1

[Event "3rd Matrix Cup 2024"]
[Site "New Delhi"]
[Date "2024.04.08"]
[Round "6.1"]
[White "Mrityunjay Kumar"]
[Black "Aronyak Ghosh"]
[Result "0-1"]
[ECO "B51"]
[WhiteElo "1900"]
[BlackElo "2517"]
[Annotator "TA"]
[PlyCount "116"]
[EventDate "2024.04.07"]
[EventType "swiss"]
[EventCountry "IND"]
[SourceTitle "playchess.com"]
[Source "ChessBase"]
[SourceQuality "1"]
[TimeControl "5400+30"]

{[%evp 9,116,8,14,4,19,0,-7,-3,-3,-29,-4,-6,6,0,4,9,20,24,16,0,20,5,0,14,14,0,0,-35,0,-31,3,7,25,9,29,28,43,0,0,-18,-24,-43,-38,-63,-62,-81,-75,-78,-81,-73,-88,-81,-73,-65,-70,-69,-89,-107,-95,-79,-70,-432,-449,-430,-358,-358,-352,-345,-345,-336,-193,-310,-284,-268,-255,-583,-577,-640,-635,-661,-632,-1579,-1551,-1880,-1446,-1377,-1358,-1401,-1216,-2308,-1721,-29971,-29973,-29975,-29975,-29965,-5065,-29979,-29980,-29980,-29981,-29981,-29982,-29983,-29984,-29985,-29986,-29986,-29986]} 1. e4 {[%emt 0:01:24]} c5 {[%emt 0:04:12]} 2. Nf3 {[%emt 0:00:24]} d6 {[%emt 0:00:19]} 3. Bb5+ {[%emt 0:00:15]} Nd7 {[%emt 0:00:58]} 4. a4 {[%emt 0:00:12]} Ngf6 {[%emt 0:01:54]} 5. Nc3 {[%emt 0:00:10]} a6 {[%emt 0:00:59]} 6. Be2 {[%emt 0:00:07]} b6 {[%emt 0:03:34]} 7. O-O {[%emt 0:00:09]} Bb7 {[%emt 0:00:21]} 8. d3 {[%emt 0:00:16] The position is equal.} e6 {[%emt 0:02:38]} 9. Ng5 {[%emt 0:04:10][%cal Bf3g5,Bg5h3,Bh3f4][%mdl 32]} h6 {[%emt 0:06:09]} 10. Nh3 {[%emt 0:00:12]} d5 {[%emt 0:09:41]} 11. exd5 {[%emt 0:00:14]} Nxd5 {[%emt 0:01:12]} 12. Nxd5 {[%emt 0:00:13]} Bxd5 {[%emt 0:00:04]} 13. Nf4 {[%emt 0:00:08]} Bc6 {[%emt 0:01:23]} 14. Bf3 {[%emt 0:04:17]} Ne5 {[%emt 0:08:37]} 15. Bxc6+ {[%emt 0:00:11]} Nxc6 {[%emt 0:00:02]} 16. Re1 {[%emt 0:01:14][%cal Of4e6]} Qd7 {[%emt 0:04:05]} 17. Be3 {[%emt 0:07:09]} Be7 {[%emt 0:05:24]} 18. c3 {[%emt 0:07:23]} e5 {[%emt 0:08:43]} 19. Ne2 {[%emt 0:03:31]} Rd8 {[%emt 0:04:08]} 20. Qb3 {[%emt 0:00:13]} Qc7 {[%emt 0:05:31]} 21. Qc4 {[%emt 0:02:10]} Qc8 {[%emt 0:02:50] [#]} 22. b4 $1 {[%emt 0:03:44][%cal Rb4c5]} O-O {[%emt 0:01:19][%cal Rc5b4]} 23. bxc5 {[%emt 0:01:01]} Na5 {[%emt 0:02:20][%csl LRc4,LRc5]} 24. Qa2 {[%emt 0:00:50]} bxc5 {[%emt 0:00:47]} 25. Rad1 {[%emt 0:02:59]} Qc6 {[%emt 0:00:15]} 26. f4 {[%emt 0:00:29]} e4 {[%emt 0:05:04] Black is more active.} 27. d4 {[%emt 0:07:31]} cxd4 {[%emt 0:01:36]} 28. Bxd4 {[%emt 0:00:47]} Nc4 {[%emt 0:00:43]} 29. f5 {[%emt 0:05:12][%cal Of5f6]} Rb8 {[%emt 0:00:13]} 30. Rb1 {[%emt 0:00:27][%cal Of5f6]} e3 $36 {[%emt 0:00:42][%mdl 2048] Black is in control.} 31. f6 {[%emt 0:01:41]} Rxb1 {[%emt 0:03:03]} (31... gxf6 32. Ng3 $11) 32. Rxb1 {[%emt 0:00:31]} Bxf6 {[%emt 0:01:21]} 33. Bxf6 {[%emt 0:00:08]} gxf6 {[%emt 0:00:21]} 34. Nd4 {[%emt 0:03:22]} Qe4 {[%emt 0:01:02] [#] White must now prevent ...Nd2.} 35. Rb4 $2 {[%emt 0:02:33][%mdl 8192] White does not recover from this.} ({White must play} 35. Qc2 $1 $15 Qxc2 36. Nxc2) 35... Nd2 $19 {[%emt 0:01:57] ...e2 is the strong threat.} 36. Qc2 {[%emt 0:01:14]} Qf4 {[%emt 0:02:03]} 37. Nf3 {[%emt 0:04:13]} Nxf3+ {[%emt 0:01:00]} 38. gxf3 {[%emt 0:00:02]} Qxf3 {[%emt 0:00:06]} 39. Qg2+ {[%emt 0:00:18]} Qxg2+ {[%emt 0:00:04]} 40. Kxg2 {[%emt 0:00:03][%mdl 4096] Endgame. KR-KR} Re8 {[%emt 0:02:46] ...e2 would now be deadly.} 41. Kf1 {[%emt 0:00:25]} f5 {[%emt 0:00:54]} ({Weaker is} 41... e2+ 42. Ke1 $15) 42. Ke2 $2 {[%emt 0:00:46]} (42. Rf4 {was the crucial defense.} Re5 (42... e2+ 43. Ke1 $11) 43. Ke2) 42... Re4 {[%emt 0:00:51]} 43. a5 {[%emt 0:02:28]} Kg7 {[%emt 0:01:08]} 44. Rb1 {[%emt 0:00:53]} f4 {[%emt 0:00:40]} 45. Rc1 {[%emt 0:00:18]} Kf6 {[%emt 0:01:46]} 46. c4 {[%emt 0:00:15]} Ke6 {[%emt 0:01:26] Strongly threatening ...Rd4.} 47. c5 {[%emt 0:00:17]} Kd7 {[%emt 0:00:03]} 48. c6+ {[%emt 0:02:05]} Kc7 {[%emt 0:00:03]} 49. h4 {[%emt 0:00:38]} h5 {[%emt 0:01:32] Threatens to win with ...Re5.} 50. Kf3 {[%emt 0:00:28]} Re6 {[%emt 0:01:37]} 51. Kxf4 {[%emt 0:00:16]} e2 {[%emt 0:00:04]} 52. Re1 {[%emt 0:00:30]} Kxc6 {[%emt 0:00:03] ( -> ...Kc5)} ({Less strong is} 52... Rxc6 53. Rxe2 Rc4+ 54. Kf3 $17) 53. Kg5 {[%emt 0:00:14]} Kd5 {[%emt 0:01:01] Black mates.} 54. Kxh5 {[%emt 0:00:08]} Kd4 {[%emt 0:00:03]} 55. Kg5 {[%emt 0:00:16]} Kd3 {[%emt 0:00:08]} 56. h5 {[%emt 0:00:12]} Kd2 {[%emt 0:00:04]} 57. Rxe2+ {[%emt 0:01:04]} Rxe2 {[%emt 0:00:20]} 58. h6 {[%emt 0:00:09]} Rh2 {[%emt 0:00:05] Weighted Error Value: White=0.52/Black=0.18 (very precise) .  Loses game:     	White=1     	---        Mistake:       	White=1     	---        Inaccurate:     	White=6     	Black=2      OK:         	White=13    	Black=14     Best:        	White=4     	Black=6} 0-1

[Event "3rd Matrix Cup 2024"]
[Site "New Delhi"]
[Date "2024.04.08"]
[Round "6.2"]
[White "Neelash Saha"]
[Black "Nirnay Garg"]
[Result "1-0"]
[ECO "D38"]
[WhiteElo "2464"]
[BlackElo "1828"]
[Annotator "TA"]
[PlyCount "91"]
[EventDate "2024.04.07"]
[EventType "swiss"]
[EventCountry "IND"]
[SourceTitle "playchess.com"]
[Source "ChessBase"]
[SourceQuality "1"]
[TimeControl "5400+30"]

{[%evp 12,91,22,16,31,19,31,28,24,-58,14,15,15,20,23,20,18,16,54,60,113,99,183,113,115,106,110,109,110,104,107,108,111,107,116,112,118,112,136,133,154,137,134,127,132,131,217,214,207,213,219,207,214,202,180,135,168,170,164,162,182,167,221,221,246,239,334,256,439,361,4702,1954,1121,621,29985,943,29985,29986,29988,29989,29989,29986]} 1. d4 {[%emt 0:04:47]} d5 {[%emt 0:00:11]} 2. c4 {[%emt 0:00:07]} e6 {[%emt 0:00:04]} 3. Nf3 {[%emt 0:00:23]} Nf6 {[%emt 0:00:06]} 4. Nc3 {[%emt 0:00:05]} Bb4 {[%emt 0:00:05]} 5. Qa4+ {[%emt 0:00:31]} Nc6 {[%emt 0:00:08][%cal Bb8c6,Bc6e5,Be5f3][%mdl 32]} 6. e3 {[%emt 0:00:03]} O-O {[%emt 0:01:24]} 7. Bd2 {[%emt 0:00:05]} Re8 {[%emt 0:01:08]} 8. Qc2 {[%emt 0:00:50]} e5 {[%emt 0:13:51]} 9. dxe5 {[%emt 0:05:17]} Nxe5 {[%emt 0:02:17] White has an edge.} 10. Nxd5 {[%emt 0:00:20]} ({White should try} 10. cxd5 $11 Nxf3+ 11. gxf3) 10... Nxd5 {[%emt 0:05:15]} (10... Bxd2+ $15 11. Qxd2 Ne4) 11. cxd5 $11 {[%emt 0:00:12]} Nxf3+ {[%emt 0:00:37]} 12. gxf3 {[%emt 0:00:05]} Bxd2+ {[%emt 0:03:03]} 13. Qxd2 {[%emt 0:00:05]} Qf6 {[%emt 0:04:04]} 14. Be2 {[%emt 0:05:16]} Bh3 {[%emt 0:03:12]} 15. Qc3 {[%emt 0:00:07]} Re5 {[%emt 0:14:06]} (15... Qh4 $14) 16. Rg1 $16 {[%emt 0:01:23] f4 would now be deadly.} (16. Qxc7 $2 Rxd5 17. Qc3 Qg5 $19) 16... Kh8 {[%emt 0:00:30] [#]} (16... Rf5 $16) 17. Rg3 {[%emt 0:00:28]} ({Weaker is} 17. Qxc7 Rxd5 18. Qxb7 Rdd8 $11) ({White should play} 17. Rd1 $1 $18) 17... Bd7 {[%emt 0:02:24]} 18. Rd1 {[%emt 0:03:14]} c6 {[%emt 0:03:08]} 19. dxc6 {[%emt 0:07:01]} Bxc6 {[%emt 0:00:08]} 20. f4 {[%emt 0:00:03]} Re6 {[%emt 0:01:31]} 21. Qxf6 {[%emt 0:00:50]} Rxf6 {[%emt 0:00:03]} 22. h4 {[%emt 0:00:46]} Rh6 {[%emt 0:01:51]} 23. h5 {[%emt 0:00:12]} Rc8 {[%emt 0:02:12]} 24. Rg5 {[%emt 0:01:21]} Kg8 {[%emt 0:03:58]} 25. Rc5 {[%emt 0:02:24]} Kf8 {[%emt 0:02:40]} 26. Bg4 {[%emt 0:02:21]} Rb8 {[%emt 0:06:19]} 27. Ke2 {[%emt 0:00:56] White is more active.} b6 {[%emt 0:05:18]} 28. Rc3 {[%emt 0:01:10]} Ke7 {[%emt 0:00:47]} (28... Bb5+ $16 29. Ke1 Rc6 30. Rxc6 Bxc6) 29. Rdc1 $18 {[%emt 0:00:13]} Bb5+ {[%emt 0:04:01]} 30. Kf3 {[%emt 0:00:27]} a5 {[%emt 0:01:43]} 31. Rc7+ {[%emt 0:01:52]} Kf8 {[%emt 0:03:29]} 32. Kg3 {[%emt 0:10:28]} Rd6 {[%emt 0:01:30]} 33. Ra7 {[%emt 0:01:09]} Rc6 {[%emt 0:02:25]} 34. Rxc6 {[%emt 0:05:00]} Bxc6 {[%emt 0:00:02][%mdl 4096] Endgame. KRB-KRB} 35. Bf3 {[%emt 0:01:54]} Be8 {[%emt 0:04:24]} 36. e4 {[%emt 0:05:33][%cal Be3e4,Be4e5,Be5e6][%mdl 32]} a4 {[%emt 0:02:44]} (36... h6 $142 37. e5 f5) 37. e5 {[%emt 0:02:18]} Rd8 {[%emt 0:02:09]} 38. f5 {[%emt 0:01:11]} Rd3 {[%emt 0:02:19] [#] aiming for ...Bc6.} 39. Kf4 {[%emt 0:02:01] And now e6 would win.} f6 $2 {[%emt 0:00:52]} (39... Rd4+ 40. Be4 Rc4) 40. e6 {[%emt 0:01:24]} g5+ $2 {[%emt 0:02:47]} (40... h6 41. Ke4 Rd6) 41. fxg6 {[%emt 0:01:14]} hxg6 {[%emt 0:00:09]} 42. hxg6 {[%emt 0:01:16][%cal Bh5g6,Bg6g7][%mdl 32]} Rd2 {[%emt 0:01:52]} 43. g7+ {[%emt 0:00:31]} Kg8 {[%emt 0:00:02]} 44. Ra8 {[%emt 0:00:05] White mates.} Rxb2 {[%emt 0:00:31]} 45. Rxe8+ {[%emt 0:00:14]} Kxg7 {[%emt 0:00:02]} 46. Ra8 {[%emt 0:00:16] Weighted Error Value: White=0.32/Black=0.42.  Mistake:       	White=2     	Black=7      Inaccurate:     	---       	Black=2      OK:         	White=14    	Black=7      Best:        	White=2     	Black=1} 1-0

[Event "3rd Matrix Cup 2024"]
[Site "New Delhi"]
[Date "2024.04.08"]
[Round "6.3"]
[White "Siddhant Nath Jha"]
[Black "Kumar, Gaurav"]
[Result "0-1"]
[ECO "B33"]
[WhiteElo "1704"]
[BlackElo "2083"]
[Annotator "RC"]
[PlyCount "54"]
[EventDate "2024.04.07"]
[EventType "swiss"]
[EventCountry "IND"]
[SourceTitle "playchess.com"]
[Source "ChessBase"]
[SourceQuality "1"]
[TimeControl "5400+30"]

1. e4 {[%emt 1:31:00]} c5 {[%emt 0:07:49]} 2. Nf3 {[%emt 0:00:00]} Nc6 {[%emt 0:00:12]} 3. d4 {[%emt 0:00:00]} cxd4 {[%emt 0:00:06]} 4. Nxd4 {[%emt 0:00:00]} Nf6 {[%emt 0:00:09]} 5. Nc3 {[%emt 0:00:00]} e5 {[%emt 0:00:24]} 6. Ndb5 {[%emt 0:00:00]} d6 {[%emt 0:00:13]} 7. Bg5 {[%emt 0:00:00]} a6 {[%emt 0:00:09]} 8. Na3 {[%emt 0:00:00]} b5 {[%emt 0:00:27]} 9. Nd5 {[%emt 0:00:00]} Be7 {[%emt 0:00:14]} 10. Bxf6 {[%emt 0:00:00]} Bxf6 {[%emt 0:00:06]} 11. c3 {[%emt 0:00:00]} Bg5 {[%emt 0:00:25]} 12. Nc2 {[%emt 0:00:00]} Rb8 {[%emt 0:00:34]} 13. Be2 {[%emt 0:00:00]} O-O {[%emt 0:01:00]} 14. Bg4 {[%emt 0:00:00]} Be6 {[%emt 0:14:34]} 15. Nce3 {[%emt 0:00:00]} Qd7 {[%emt 0:01:02]} 16. Nf5 {[%emt 0:00:00]} g6 {[%emt 0:01:42]} 17. h4 {[%emt 0:00:00]} Bd8 {[%emt 0:01:33]} 18. Nh6+ {[%emt 0:00:00]} Kg7 {[%emt 0:00:58]} 19. h5 {[%emt 0:00:00]} Bg5 {[%emt 0:01:39]} 20. hxg6 {[%emt 0:00:00]} Bxh6 {[%emt 0:01:40]} 21. Rxh6 {[%emt 0:00:00]} Kxh6 {[%emt 0:00:56]} 22. Qd2+ {[%emt 0:00:00]} Kg7 {[%emt 0:02:33]} 23. gxh7 {[%emt 0:00:00]} f6 {[%emt 0:01:06]} 24. O-O-O {[%emt 0:00:00]} Bxg4 {[%emt 0:00:51]} 25. Rh1 {[%emt 0:00:00]} Kh8 {[%emt 0:00:09]} 26. Ne3 {[%emt 0:00:00]} Be6 {[%emt 0:00:43]} 27. g3 {[%emt 0:00:00]} b4 {[%emt 0:03:48]} 0-1

[Event "3rd Matrix Cup 2024"]
[Site "New Delhi"]
[Date "2024.04.08"]
[Round "6.4"]
[White "Ram Prakash, R."]
[Black "Jyotshnav Talukdar"]
[Result "1/2-1/2"]
[ECO "A01"]
[WhiteElo "2191"]
[BlackElo "1877"]
[Annotator "RC"]
[PlyCount "188"]
[EventDate "2024.04.07"]
[EventType "swiss"]
[EventCountry "IND"]
[SourceTitle "playchess.com"]
[Source "ChessBase"]
[SourceQuality "1"]
[TimeControl "5400+30"]

1. b3 {[%emt 0:00:10]} e5 {[%emt 0:00:57]} 2. Bb2 {[%emt 0:00:05]} Nc6 {[%emt 0:00:04]} 3. e3 {[%emt 0:00:15]} d5 {[%emt 0:01:21]} 4. Bb5 {[%emt 0:00:11]} Bd6 {[%emt 0:00:08]} 5. c4 {[%emt 0:02:06]} dxc4 {[%emt 0:06:15]} 6. bxc4 {[%emt 0:00:08]} Nf6 {[%emt 0:00:13]} 7. c5 {[%emt 0:10:28]} Bxc5 {[%emt 0:00:20]} 8. Bxe5 {[%emt 0:00:34]} O-O {[%emt 0:00:36]} 9. Bb2 {[%emt 0:03:54]} Bf5 {[%emt 0:19:20]} 10. a3 {[%emt 0:05:27]} a6 {[%emt 0:05:17]} 11. Be2 {[%emt 0:00:46]} Re8 {[%emt 0:06:22]} 12. Nf3 {[%emt 0:05:35]} Bd3 {[%emt 0:05:49]} 13. O-O {[%emt 0:01:10]} Qd6 {[%emt 0:12:06]} 14. Bxd3 {[%emt 0:01:59]} Qxd3 {[%emt 0:01:40]} 15. Bxf6 {[%emt 0:03:47]} gxf6 {[%emt 0:00:01]} 16. Ne1 {[%emt 0:00:26]} Qg6 {[%emt 0:01:16]} 17. d4 {[%emt 0:01:23]} Rad8 {[%emt 0:00:23]} 18. Ra2 {[%emt 0:04:54]} Kh8 {[%emt 0:12:59]} 19. g3 {[%emt 0:04:35]} Bb6 {[%emt 0:02:44]} 20. Ng2 {[%emt 0:00:31]} Rg8 {[%emt 0:01:59]} 21. Nd2 {[%emt 0:02:42]} Ne7 {[%emt 0:05:58]} 22. Qf3 {[%emt 0:01:30]} Nd5 {[%emt 0:04:18]} 23. Rb2 {[%emt 0:07:01]} Qg4 {[%emt 0:02:40]} 24. Qxg4 {[%emt 0:02:04]} Rxg4 {[%emt 0:00:01]} 25. Nc4 {[%emt 0:00:20]} Rb8 {[%emt 0:01:41]} 26. f3 {[%emt 0:41:29]} Rgg8 {[%emt 0:00:47]} 27. Nxb6 {[%emt 0:00:00]} Nxb6 {[%emt 0:00:06]} 28. Rc1 {[%emt 0:00:00]} Rgc8 {[%emt 0:01:04]} 29. Rcb1 {[%emt 0:00:00]} a5 {[%emt 0:01:30]} 30. Rc2 {[%emt 0:00:00]} Nd7 {[%emt 0:02:16]} 31. Rb5 {[%emt 0:00:00]} a4 {[%emt 0:01:19]} 32. Ra5 {[%emt 0:00:00]} b5 {[%emt 0:00:24]} 33. Nf4 {[%emt 0:00:00]} c6 {[%emt 0:01:35]} 34. Ra7 {[%emt 0:00:00]} Nb6 {[%emt 0:00:01]} 35. Rxf7 {[%emt 0:00:00]} Nc4 {[%emt 0:00:14]} 36. Rc3 {[%emt 0:00:00]} Rf8 {[%emt 0:02:58]} 37. Rxf8+ {[%emt 0:00:00]} Rxf8 {[%emt 0:00:01]} 38. Kf2 {[%emt 0:00:00]} Ra8 {[%emt 0:01:01]} 39. Nd3 {[%emt 0:00:00]} Kg7 {[%emt 0:00:59]} 40. Nb4 {[%emt 0:00:00]} Rc8 {[%emt 0:00:01]} 41. e4 {[%emt 0:00:00]} c5 {[%emt 0:00:14]} 42. dxc5 {[%emt 0:00:00]} Rxc5 {[%emt 0:00:02]} 43. Nd5 {[%emt 0:00:00]} f5 {[%emt 0:00:42]} 44. Ke2 {[%emt 0:00:00]} fxe4 {[%emt 0:00:13]} 45. fxe4 {[%emt 0:00:00]} Rc6 {[%emt 0:01:14]} 46. Kd3 {[%emt 0:00:00]} Kf7 {[%emt 0:01:33]} 47. Kd4 {[%emt 0:00:00]} Rh6 {[%emt 0:00:36]} 48. Rf3+ {[%emt 0:00:00]} Kg7 {[%emt 0:00:37]} 49. h4 {[%emt 0:00:00]} Rc6 {[%emt 0:00:07]} 50. Ne7 {[%emt 0:00:12]} Rd6+ {[%emt 0:00:51]} 51. Kc5 {[%emt 0:00:07]} Re6 {[%emt 0:00:01]} 52. Nf5+ {[%emt 0:00:17]} Kg6 {[%emt 0:00:34]} 53. Kd5 {[%emt 0:01:24]} Re5+ {[%emt 0:00:18]} 54. Kd4 {[%emt 0:00:19]} Rxe4+ {[%emt 0:01:04]} 55. Kxe4 {[%emt 0:00:23]} Nd2+ {[%emt 0:00:02]} 56. Kd3 {[%emt 0:06:37]} Nxf3 {[%emt 0:00:02]} 57. Nd6 {[%emt 0:00:08]} Ne5+ {[%emt 0:01:35]} 58. Kc3 {[%emt 0:01:03]} Nc6 {[%emt 0:00:01]} 59. Nxb5 {[%emt 0:01:49]} Kf5 {[%emt 0:00:37]} 60. Nd6+ {[%emt 0:00:47]} Kg4 {[%emt 0:00:05]} 61. Ne4 {[%emt 0:00:10]} Kf3 {[%emt 0:00:20]} 62. Nf6 {[%emt 0:01:51]} Kxg3 {[%emt 0:00:24]} 63. h5 {[%emt 0:01:06]} Kh4 {[%emt 0:00:01]} 64. Kc4 {[%emt 0:01:23]} Kg5 {[%emt 0:00:02]} 65. Nxh7+ {[%emt 0:00:21]} Kxh5 {[%emt 0:00:03]} 66. Nf6+ {[%emt 0:00:43]} Kg6 {[%emt 0:00:06]} 67. Nd7 {[%emt 0:00:07]} Kf7 {[%emt 0:00:55]} 68. Kc5 {[%emt 0:00:28]} Nd8 {[%emt 0:01:59]} 69. Nb6 {[%emt 0:00:22]} Ke7 {[%emt 0:00:02]} 70. Nxa4 {[%emt 0:01:10]} Kd7 {[%emt 0:00:16]} 71. Kb6 {[%emt 0:00:12]} Kc8 {[%emt 0:00:15]} 72. Nc5 {[%emt 0:00:15]} Nf7 {[%emt 0:00:25]} 73. a4 {[%emt 0:00:21]} Ne5 {[%emt 0:00:32]} 74. Ne4 {[%emt 0:00:57]} Kb8 {[%emt 0:00:40]} 75. Nd6 {[%emt 0:00:32]} Nd7+ {[%emt 0:00:16]} 76. Kc6 {[%emt 0:00:15]} Ne5+ {[%emt 0:00:04]} 77. Kb5 {[%emt 0:00:14]} Kc7 {[%emt 0:01:02]} 78. Ne8+ {[%emt 0:00:47]} Kb7 {[%emt 0:00:02]} 79. Nd6+ {[%emt 0:00:51]} Kc7 {[%emt 0:00:01]} 80. Ne4 {[%emt 0:00:11]} Nc6 {[%emt 0:00:34]} 81. Nc3 {[%emt 0:00:35]} Kb7 {[%emt 0:00:09]} 82. Kc5 {[%emt 0:00:28]} Ne5 {[%emt 0:00:48]} 83. Kb5 {[%emt 0:00:45]} Nc6 {[%emt 0:00:09]} 84. Na2 {[%emt 0:01:04]} Na7+ {[%emt 0:00:05]} 85. Kb4 {[%emt 0:00:22]} Nc6+ {[%emt 0:00:12]} 86. Kc5 {[%emt 0:00:18]} Na5 {[%emt 0:00:47]} 87. Kb5 {[%emt 0:00:44]} Nc6 {[%emt 0:00:19]} 88. Nc3 {[%emt 0:00:13]} Na7+ {[%emt 0:00:21]} 89. Kb4 {[%emt 0:00:28]} Ka6 {[%emt 0:00:14]} 90. Na2 {[%emt 0:00:59]} Nc6+ {[%emt 0:00:04]} 91. Ka3 {[%emt 0:00:13]} Ka5 {[%emt 0:00:15]} 92. Nc1 {[%emt 0:00:08]} Nd4 {[%emt 0:00:12]} 93. Nd3 {[%emt 0:00:31]} Nc2+ {[%emt 0:00:08]} 94. Kb3 {[%emt 0:00:09]} Nd4+ {[%emt 0:00:06]} 1/2-1/2